bitfinex/quotes_SOLUSD_20250131
["timestamp","ask_amount","ask_price","bid_price","bid_amount"]
[1738348970455,0.80927177,231.75,231.62,0.063]
[1738348970736,13.41184853,231.74,231.62,0.063]
[1738348970946,0.8093626,231.73,231.62,0.063]
[1738348971331,0.80932828,231.73,231.62,0.063]
[1738348971546,0.83929156,231.76,231.62,0.063]
[1738348971762,13.41184853,231.7,231.62,0.063]
[1738348972057,13.41184853,231.68,231.62,0.063]
[1738348972260,0.80957569,231.67,231.62,0.063]
[1738348973758,13.41184853,231.66,231.62,0.063]
[1738348973971,0.809603,231.65,231.62,0.063]
[1738348974158,2.72868,231.73,231.62,0.0001]
[1738348974159,13.41184853,231.66,231.62,0.0001]
[1738348974357,0.80967388,231.65,231.62,0.0001]
[1738348974577,0.80954383,231.66,231.62,0.0001]
[1738348974871,20.80954383,231.66,231.62,0.0001]
[1738348975564,13.41184853,231.65,231.62,0.0001]
[1738348975769,0.80967379,231.64,231.62,0.0001]
[1738348977352,0.80961626,231.65,231.62,0.0001]
[1738348978059,0.80955183,231.68,231.62,0.0001]
[1738348978564,0.80955183,231.68,231.58,34.64099678]
[1738348978874,20.0,231.7,231.59,35.07789678]
[1738348979046,4.54939859,231.72,231.61,35.07789678]
[1738348979249,8.034,231.74,231.63,35.07789678]
[1738348979470,8.034,231.74,231.67,35.07789678]
[1738348980151,0.03,231.76,231.67,35.07789678]
[1738348980844,0.03,231.76,231.71,35.07789678]
[1738348981153,0.03,231.76,231.75,35.07789678]
[1738348981557,0.03,231.76,231.75,35.20338678]
[1738348981866,0.03,231.76,231.75,49.74072531]
[1738348982166,3.72,231.93,231.8,0.12549]
[1738348982469,8.8298946,231.97,231.9,35.07789678]
[1738348982470,6.46281856,231.97,231.9,35.07789678]
[1738348983258,51.27,232.0,231.9,35.07789678]
[1738348983980,51.27,232.0,231.92,35.07789678]
[1738348984351,51.27,232.0,231.91,35.07789678]
[1738348985050,51.27,232.0,231.95,35.07789678]
[1738348985252,0.03,232.0,231.99,35.07789678]
[1738348986554,0.03,232.0,231.89,14.53733853]
[1738348986555,0.03,232.0,231.97,35.07789678]
[1738348986757,0.03,232.0,231.95,35.07789678]
[1738348987270,0.03,232.0,231.97,35.07789678]
[1738348987467,0.03,232.0,231.99,35.07789678]
[1738348988258,0.03,232.0,231.99,50.74072531]
[1738348988479,0.03,232.0,231.99,50.86621531]
[1738348988792,0.03,232.0,231.99,50.74072531]
[1738348989095,0.03,232.0,231.99,49.74072531]
[1738348989483,0.03,232.0,231.99,48.74072531]
[1738348989662,0.03,232.0,231.99,49.74072531]
[1738348990656,0.03,232.0,231.99,35.07789678]
[1738348992077,0.03,232.0,231.99,48.61523531]
[1738348992280,0.03,232.0,231.99,48.74072531]
[1738348992782,0.03,232.0,231.99,35.07789678]
[1738348993376,0.03,232.0,231.98,35.07789678]
[1738348994188,0.03,232.0,231.92,1.0]
[1738348994189,0.03,232.0,231.95,35.07789678]
[1738348994496,0.03,232.0,231.87,7.5728]
[1738348994497,0.03,232.0,231.99,35.07789678]
[1738348994671,0.03,232.0,231.98,35.07789678]
[1738348995073,0.03,232.0,231.99,36.32887678]
[1738348995285,0.03,232.0,231.99,54.05122531]
[1738348995595,0.03,232.0,231.99,53.05122531]
[1738348995802,0.03,232.0,231.99,35.07789678]
[1738348995978,0.03,232.0,231.97,35.07789678]
[1738348996298,0.03,232.0,231.98,35.07789678]
[1738348996591,0.03,232.0,231.98,21.41195108]
[1738348996769,0.03,232.0,231.99,21.41195108]
[1738348996973,0.03,232.0,231.98,21.41195108]
[1738348997570,0.03,232.0,231.9,24.31763853]
[1738348997571,0.03,232.0,231.95,21.41195108]
[1738348997773,0.03,232.0,231.91,21.41195108]
[1738348998191,0.8382255,232.0,231.88,21.41195108]
[1738348998393,0.03,232.0,231.91,21.41195108]
[1738348998574,0.83833463,232.0,231.88,21.41195108]
[1738348998776,0.83833463,232.0,231.86,21.41195108]
[1738348999166,13.41184853,231.99,231.84,21.41195108]
[1738348999367,0.80850034,231.98,231.84,21.41195108]
[1738348999602,20.0,231.96,231.82,21.41195108]
[1738348999777,0.80861348,231.95,231.8,21.41195108]
[1738348999993,0.80861348,231.95,231.76,4.3776]
[1738348999994,0.80859505,231.98,231.78,0.12549]
[1738349000187,0.80859505,231.98,231.86,21.41195108]
[1738349000710,0.80859505,231.98,231.84,21.41195108]
[1738349000908,20.80859505,231.98,231.86,21.41195108]
[1738349001192,0.03,232.0,231.9,21.41195108]
[1738349001376,3.71,232.0,231.93,21.41195108]
[1738349001891,3.71,232.0,231.91,21.41195108]
[1738349002100,3.71,232.0,231.93,21.41195108]
[1738349002395,3.71,232.0,231.95,21.41195108]
[1738349002695,3.71,232.0,231.87,21.41195108]
[1738349002696,4.51826925,232.0,231.87,21.41195108]
[1738349002874,4.51826925,232.0,231.89,21.41195108]
[1738349003074,3.71,232.0,231.95,21.41195108]
[1738349003274,0.03,232.0,231.95,21.41195108]
[1738349004091,0.03,232.0,231.93,21.41195108]
[1738349004292,0.83829302,232.0,231.88,21.41195108]
[1738349004515,20.0,231.98,231.78,1.0]
[1738349004801,20.0,231.93,231.76,21.47495108]
[1738349004969,0.12549,231.9,231.76,0.063]
[1738349005176,1.5639,231.91,231.81,21.41195108]
[1738349005374,1.5639,231.91,231.83,21.41195108]
[1738349005573,2.37246296,231.91,231.79,21.41195108]
[1738349005774,13.53733853,231.9,231.76,0.063]
[1738349006000,6.51639,231.88,231.76,0.063]
[1738349006179,0.80878673,231.87,231.76,21.47495108]
[1738349006392,13.53733853,231.86,231.76,0.063]
[1738349006697,13.53733853,231.84,231.76,0.063]
[1738349006895,13.53733853,231.82,231.76,0.063]
[1738349007100,0.12549,231.8,231.76,0.063]
[1738349007271,0.80907191,231.81,231.76,0.063]
[1738349007476,20.0,231.8,231.76,0.063]
[1738349007674,14.34642777,231.79,231.75,700.0]
[1738349007980,15.17253853,231.76,231.75,688.3036]
[1738349008174,1.6352,231.76,231.75,687.81617434]
[1738349008609,19.98923853,231.76,231.75,669.48317434]
[1738349008809,19.98923853,231.76,231.75,667.81657434]
[1738349013521,19.98923853,231.76,231.75,565.63383562]
[1738349014400,20.98923853,231.76,231.75,565.69683562]
[1738349014815,20.98923853,231.76,231.75,506.24676775]
[1738349014816,50.98923853,231.76,231.75,506.24676775]
[1738349014995,45.03233853,231.76,231.75,472.70433752]
[1738349015182,46.0043016,231.76,231.75,472.70433752]
[1738349016177,46.0043016,231.76,231.75,384.20742903]
[1738349016490,46.0043016,231.76,231.75,357.74312939]
[1738349016693,49.53001741,231.76,231.75,249.72377233]
[1738349016900,49.53001741,231.76,231.75,181.72377233]
[1738349017305,49.53001741,231.76,231.75,167.72377233]
[1738349017508,49.53001741,231.76,231.75,166.5454472]
[1738349017808,49.53001741,231.76,231.56,0.063]
[1738349017809,1.0,231.64,231.56,0.063]
[1738349018106,0.12549,231.6,231.56,0.063]
[1738349018312,0.12549,231.58,231.56,0.063]
[1738349018487,0.80909304,231.57,231.56,0.063]
[1738349019606,0.93458304,231.57,231.56,0.063]
[1738349022751,0.80909304,231.59,231.56,34.94250095]
[1738349022903,3.6,231.6,231.56,0.063]
[1738349023217,3.6,231.6,231.59,34.87950095]
[1738349023527,3.6,231.6,231.57,34.87950095]
[1738349023694,0.80909304,231.64,231.59,34.87950095]
[1738349023895,0.80909304,231.67,231.57,34.87950095]
[1738349024111,0.12549,231.65,231.56,34.94250095]
[1738349024319,0.80909304,231.64,231.58,34.87950095]
[1738349024617,0.80909304,231.67,231.62,34.87950095]
[1738349024820,0.80909304,231.67,231.61,13.41184853]
[1738349024821,3.6,231.66,231.61,13.41184853]
[1738349025021,3.6,231.66,231.61,34.87950095]
[1738349025514,3.6,231.66,231.6,13.41184853]
[1738349025719,0.80909304,231.65,231.6,13.41184853]
[1738349025927,0.80909304,231.65,231.58,34.87950095]
[1738349026413,0.80909304,231.65,231.57,48.29134948]
[1738349026607,0.80909304,231.65,231.56,1.7289]
[1738349026808,20.12549,231.64,231.56,0.063]
[1738349027109,0.12549,231.62,231.56,0.063]
[1738349027313,0.80909304,231.61,231.56,0.063]
[1738349027936,0.12549,231.6,231.56,0.0113]
[1738349028228,0.12549,231.62,231.52,0.0613]
[1738349028229,0.12549,231.56,231.52,0.0613]
[1738349028408,0.80909304,231.55,231.52,0.0613]
[1738349028603,1.77900248,231.55,231.52,0.0613]
[1738349029033,0.12549,231.54,231.52,0.0613]
[1738349029209,0.93458304,231.53,231.52,0.0613]
[1738349030117,0.80909304,231.53,231.52,0.0613]
[1738349030323,0.80909304,231.54,231.52,0.0613]
[1738349030529,3.58,231.56,231.53,21.49485413]
[1738349030833,3.58,231.6,231.55,34.93247143]
[1738349031034,0.80909304,231.59,231.52,0.0613]
[1738349031236,0.12549,231.58,231.52,0.0613]
[1738349031535,0.80909304,231.59,231.52,34.99377143]
[1738349032037,0.80909304,231.59,231.52,0.0613]
[1738349032726,0.12549,231.58,231.52,0.0613]
[1738349032934,0.80909304,231.57,231.52,0.0613]
[1738349035333,0.93458304,231.59,231.52,0.0613]
[1738349036232,0.12549,231.57,231.52,0.0613]
[1738349036434,0.80909304,231.56,231.52,0.0613]
[1738349036950,32.0,231.53,231.52,0.0613]
[1738349037153,1.0,231.48,231.33,34.93247143]
[1738349037330,0.80909304,231.47,231.35,34.93247143]
[1738349037527,0.80909304,231.47,231.37,34.93247143]
[1738349037765,0.12549,231.46,231.37,34.93247143]
[1738349037948,4.56909304,231.45,231.37,34.93247143]
[1738349038423,3.76,231.45,231.42,34.93247143]
[1738349038624,3.76,231.45,231.4,34.93247143]
[1738349039364,3.76,231.45,231.41,0.64813455]
[1738349039561,3.76,231.45,231.42,41.32757143]
[1738349039744,3.76,231.45,231.42,6.3951]
[1738349039940,3.76,231.45,231.38,0.063]
[1738349040264,0.80909304,231.44,231.38,0.063]
[1738349040661,3.76,231.45,231.38,0.063]
[1738349040842,0.80909304,231.44,231.38,0.063]
[1738349041363,3.76,231.45,231.4,34.93247143]
[1738349041540,3.76,231.45,231.44,34.93247143]
[1738349041740,3.76,231.45,231.38,34.99547143]
[1738349041948,0.80909304,231.44,231.38,0.063]
[1738349042141,3.76,231.45,231.4,34.93247143]
[1738349042343,3.76,231.45,231.41,14.05994292]
[1738349043064,3.81148457,231.52,231.44,34.93247143]
[1738349043363,3.81148457,231.52,231.38,34.99547143]
[1738349043364,0.12549,231.5,231.38,34.99547143]
[1738349043661,20.80909304,231.49,231.39,0.64818031]
[1738349043850,24.62057761,231.49,231.38,0.063]
[1738349044247,24.62057761,231.49,231.39,13.41184853]
[1738349044647,0.12549,231.48,231.38,0.71119177]
[1738349044846,0.80909304,231.47,231.38,0.063]
[1738349045438,0.12549,231.46,231.38,0.063]
[1738349045666,0.80909304,231.47,231.38,0.063]
[1738349045667,0.12549,231.44,231.38,0.063]
[1738349045852,0.12549,231.42,231.38,0.0113]
[1738349046054,0.12549,231.4,231.38,0.0113]
[1738349046260,4.54909304,231.39,231.38,0.0113]
[1738349046463,3.74,231.39,231.38,0.0113]
[1738349048461,3.72,231.45,231.38,34.94377143]
[1738349048666,3.72,231.48,231.4,34.93247143]
[1738349048968,0.80909304,231.47,231.39,0.64816311]
[1738349049755,0.80909304,231.47,231.38,0.0113]
[1738349049974,0.80909304,231.47,231.39,0.64818353]
[1738349050172,0.80909304,231.47,231.38,0.0113]
[1738349050468,0.12549,231.46,231.38,0.0113]
[1738349050673,0.80909304,231.45,231.38,0.0113]
[1738349050872,0.80909304,231.47,231.38,0.0113]
[1738349051050,0.80909304,231.47,231.38,0.65946333]
[1738349051365,0.12549,231.46,231.38,0.0113]
[1738349051554,0.80909304,231.45,231.38,0.0113]
[1738349051755,24.52909304,231.45,231.38,0.0113]
[1738349053067,3.72,231.48,231.39,13.41184853]
[1738349053068,0.80909304,231.48,231.39,13.41184853]
[1738349053384,0.80909304,231.49,231.41,13.41184853]
[1738349053547,0.80909304,231.49,231.38,0.0113]
[1738349053548,20.0,231.47,231.38,0.0113]
[1738349053749,0.12549,231.45,231.38,0.0113]
[1738349053951,0.80909304,231.44,231.38,0.0113]
[1738349054176,0.12549,231.43,231.38,0.0113]
[1738349054378,0.80909304,231.42,231.38,0.0113]
[1738349055066,0.12549,231.41,231.38,0.0113]
[1738349055380,0.12549,231.39,231.38,0.0113]
[1738349055969,0.12549,231.39,231.28,0.063]
[1738349056158,0.12549,231.37,231.28,0.0001]
[1738349056359,20.0,231.33,231.28,0.0001]
[1738349056569,0.12549,231.31,231.28,0.0001]
[1738349056874,0.12549,231.29,231.28,0.0001]
[1738349057385,0.80909304,231.3,231.28,0.0001]
[1738349057687,0.80909304,231.3,231.14,34.99547143]
[1738349057688,0.12549,231.27,231.14,0.063]
[1738349057972,0.12549,231.23,231.14,0.063]
[1738349058289,0.12549,231.21,231.14,0.063]
[1738349058454,0.80909304,231.2,231.14,0.063]
[1738349059490,0.12549,231.19,231.14,0.063]
[1738349059656,0.80909304,231.18,231.14,0.063]
[1738349059860,0.80909304,231.2,231.14,0.063]
[1738349060568,3.68,231.22,231.15,34.93247143]
[1738349060749,3.68,231.22,231.17,34.93247143]
[1738349060949,3.68,231.22,231.17,0.64876147]
[1738349061378,3.68,231.22,231.19,34.93247143]
[1738349061697,0.83909304,231.28,231.22,13.41184853]
[1738349061698,0.03,231.28,231.22,13.41184853]
[1738349061856,0.03,231.28,231.23,0.64860205]
[1738349062171,0.03,231.28,231.24,13.41184853]
[1738349062352,0.03,231.28,231.23,6.0848]
[1738349062555,0.03,231.28,231.24,14.06048008]
[1738349064283,0.03,231.28,231.24,13.41184853]
[1738349064471,0.03,231.28,231.23,6.0848]
[1738349064662,0.03,231.28,231.24,0.64861819]
[1738349064862,0.03,231.28,231.23,6.0848]
[1738349065470,0.03,231.28,231.18,1.6067]
[1738349065668,0.83909304,231.28,231.18,37.18795315]
[1738349065876,0.03,231.28,231.2,34.93247143]
[1738349066180,0.12549,231.27,231.18,1.6067]
[1738349066360,0.80909304,231.26,231.14,0.063]
[1738349066677,0.12549,231.25,231.14,0.063]
[1738349066979,0.80909304,231.24,231.14,0.063]
[1738349067177,0.80909304,231.24,231.15,0.64885604]
[1738349067352,0.03,231.28,231.17,34.93247143]
[1738349067353,0.83909304,231.28,231.17,34.93247143]
[1738349067855,0.12549,231.27,231.14,0.063]
[1738349068059,0.80909304,231.26,231.14,0.063]
[1738349068377,0.12549,231.25,231.14,0.063]
[1738349068674,0.80909304,231.24,231.14,0.063]
[1738349068875,2.54125204,231.24,231.14,0.063]
[1738349069055,0.80909304,231.24,231.14,0.71190927]
[1738349069257,2.54111004,231.26,231.14,0.71190927]
[1738349069670,2.54111004,231.26,231.14,35.6443807]
[1738349069873,2.54111004,231.26,231.14,0.71190927]
[1738349070380,1.0,231.21,231.14,0.063]
[1738349070583,0.12549,231.19,231.14,0.063]
[1738349070775,4.52909304,231.18,231.14,0.063]
[1738349072863,0.80909304,231.21,231.14,34.99547143]
[1738349073069,0.80909304,231.24,231.16,34.93247143]
[1738349073288,0.80909304,231.24,231.15,34.93247143]
[1738349073588,0.80909304,231.24,231.14,34.99547143]
[1738349073767,0.80909304,231.27,231.21,34.93247143]
[1738349073968,0.03,231.28,231.25,34.93247143]
[1738349074285,0.03,231.28,231.26,34.93247143]
[1738349074666,0.03,231.28,231.27,34.93247143]
[1738349075290,0.03,231.28,231.26,34.93247143]
[1738349075484,0.03,231.28,231.25,34.93247143]
[1738349075685,0.03,231.28,231.26,0.64850515]
[1738349075892,0.03,231.28,231.26,35.58097658]
[1738349076192,0.03,231.28,231.26,34.93247143]
[1738349076391,0.03,231.28,231.27,48.34431996]
[1738349077691,0.03,231.28,231.27,54.63731996]
[1738349078290,4.50909304,231.42,231.29,1.5578]
[1738349078472,0.15,231.57,231.39,34.93247143]
[1738349078473,0.80909304,231.45,231.39,34.93247143]
[1738349078792,51.38,231.46,231.39,34.93247143]
[1738349078988,51.38,231.46,231.41,34.93247143]
[1738349079169,51.38,231.46,231.42,35.58057743]
[1738349079580,51.38,231.46,231.39,34.93247143]
[1738349079787,51.38,231.46,231.4,35.58057486]
[1738349080310,51.38,231.46,231.41,34.93247143]
[1738349080492,51.38,231.46,231.42,0.64807621]
[1738349080789,51.38,231.46,231.4,34.93247143]
[1738349080977,51.38,231.46,231.41,0.64807566]
[1738349081290,51.38,231.46,231.4,34.93247143]
[1738349081291,51.38,231.46,231.39,35.58054693]
[1738349081482,51.38,231.46,231.39,0.6480755]
[1738349081875,51.38,231.46,231.39,35.58054693]
[1738349082077,51.38,231.46,231.4,34.93247143]
[1738349082271,0.80909304,231.45,231.35,34.93247143]
[1738349082471,51.38,231.46,231.39,34.93247143]
[1738349082800,51.38,231.46,231.41,34.93247143]
[1738349082981,51.38,231.46,231.42,35.58053013]
[1738349083178,51.38,231.46,231.44,34.93247143]
[1738349083490,7.51148457,231.56,231.45,35.58049186]
[1738349083696,0.80909304,231.55,231.49,34.93247143]
[1738349083987,3.7,231.57,231.45,0.64802043]
[1738349084189,0.80909304,231.56,231.47,34.93247143]
[1738349084392,0.80909304,231.56,231.46,34.93247143]
[1738349084578,0.80909304,231.56,231.48,34.93247143]
[1738349084777,0.80909304,231.56,231.49,0.6478923]
[1738349084980,3.7,231.57,231.49,35.58036373]
[1738349085180,3.7,231.57,231.5,34.93247143]
[1738349085380,3.7,231.57,231.51,0.64779294]
[1738349085582,3.7,231.57,231.49,34.93247143]
[1738349085790,0.80909304,231.61,231.53,34.93247143]
[1738349085981,4.62057761,231.62,231.55,34.93247143]
[1738349086172,4.50909304,231.61,231.54,34.93247143]
[1738349086381,3.7,231.6,231.5,0.64776571]
[1738349086678,0.80909304,231.59,231.5,14.05961424]
[1738349086995,0.12549,231.64,231.55,13.41184853]
[1738349086996,0.80909304,231.64,231.55,13.41184853]
[1738349087180,5.546162,231.63,231.57,34.93247143]
[1738349087384,3.7,231.64,231.57,34.93247143]
[1738349087692,0.80909304,231.63,231.55,34.93247143]
[1738349087880,0.80909304,231.63,231.56,0.64771357]
[1738349088082,3.7,231.64,231.58,34.93247143]
[1738349088298,55.06,231.67,231.6,34.93247143]
[1738349088674,0.80909304,231.66,231.58,34.93247143]
[1738349088997,20.0,231.64,231.56,6.221]
[1738349089181,20.0,231.64,231.53,34.93247143]
[1738349089182,0.93458304,231.63,231.49,6.3264]
[1738349089374,0.12549,231.61,231.43,42.90417143]
[1738349089698,1.94186999,231.6,231.49,34.93247143]
[1738349089889,0.80909304,231.6,231.5,0.64781056]
[1738349090091,0.12549,231.61,231.49,34.93247143]
[1738349090283,1.13072332,231.59,231.49,34.93247143]
[1738349090487,0.80909304,231.58,231.5,0.6478866]
[1738349090684,0.80909304,231.58,231.48,0.64784292]
[1738349090891,0.12549,231.57,231.43,7.9717]
[1738349091212,0.80909304,231.56,231.44,13.41184853]
[1738349091386,0.80909304,231.56,231.45,0.64798116]
[1738349091579,0.12549,231.55,231.44,0.64798554]
[1738349091781,24.48909304,231.54,231.44,0.64798554]
[1738349091989,3.68,231.54,231.47,34.93247143]
[1738349092188,3.68,231.54,231.48,0.64788082]
[1738349092399,3.68,231.54,231.47,35.58035935]
[1738349093201,23.68,231.54,231.47,35.58035935]
[1738349093502,23.68,231.54,231.48,0.64800772]
[1738349093800,3.68,231.54,231.48,0.64800772]
[1738349093994,3.68,231.57,231.51,34.93247143]
[1738349094197,3.68,231.57,231.43,12.2925]
[1738349094198,3.68,231.57,231.46,34.93247143]
[1738349094389,0.80909304,231.56,231.45,34.93247143]
[1738349094580,0.80909304,231.56,231.45,13.41184853]
[1738349094886,0.80909304,231.56,231.46,0.64798937]
[1738349095092,0.80909304,231.56,231.45,13.41184853]
[1738349095293,0.80909304,231.56,231.46,0.64793916]
[1738349095509,3.68,231.57,231.5,34.93247143]
[1738349095682,3.68,231.57,231.51,34.93247143]
[1738349096013,4.48909304,231.57,231.49,34.93247143]
[1738349096382,4.48909304,231.57,231.47,34.93247143]
[1738349096598,4.48909304,231.57,231.45,34.93247143]
[1738349096897,4.48909304,231.57,231.48,13.41184853]
[1738349097211,3.81148457,231.58,231.51,34.93247143]
[1738349097695,3.81148457,231.58,231.52,0.64780311]
[1738349098100,0.80909304,231.59,231.52,0.64780311]
[1738349098312,23.66,231.6,231.53,34.93247143]
[1738349098685,23.66,231.6,231.53,21.50058672]
[1738349098881,0.80909304,231.62,231.55,21.50058672]
[1738349099101,0.03,231.63,231.57,21.50058672]
[1738349099306,0.03,231.63,231.59,21.50058672]
[1738349099498,0.03,231.63,231.6,0.6475725]
[1738349099805,0.03,231.63,231.61,21.50058672]
[1738349100195,0.03,231.63,231.6,0.6475725]
[1738349100608,0.03,231.63,231.53,4.319]
[1738349100609,0.03,231.63,231.58,0.64756669]
[1738349100817,0.12549,231.62,231.5,21.50058672]
[1738349101115,0.80909304,231.61,231.48,21.50058672]
[1738349101318,0.80909304,231.61,231.54,21.50058672]
[1738349101628,0.03,231.63,231.59,21.50058672]
[1738349101781,0.03,231.63,231.55,0.64768786]
[1738349101782,0.80909304,231.62,231.49,0.64766527]
[1738349101991,0.12549,231.61,231.48,0.64786741]
[1738349102205,0.12549,231.61,231.48,22.14845413]
[1738349102206,0.80909304,231.6,231.48,22.14845413]
[1738349102381,0.80909304,231.6,231.5,21.50058672]
[1738349102577,0.12549,231.59,231.46,21.50058672]
[1738349102777,0.80909304,231.58,231.47,0.64793222]
[1738349103008,0.93458304,231.6,231.48,13.41184853]
[1738349103315,0.80909304,231.6,231.49,0.64784127]
[1738349103607,0.12549,231.59,231.44,22.14840768]
[1738349103784,0.12549,231.57,231.44,22.14840768]
[1738349104116,0.12549,231.57,231.46,21.50058672]
[1738349104117,0.80909304,231.57,231.46,21.50058672]
[1738349104424,0.12549,231.56,231.45,0.64789866]
[1738349104579,0.80909304,231.55,231.44,0.64800783]
[1738349104793,0.12549,231.56,231.44,0.64800783]
[1738349104985,0.80909304,231.55,231.44,0.64800783]
[1738349106294,0.80909304,231.55,231.43,29.47228672]
[1738349106487,0.80909304,231.55,231.44,0.64803431]
[1738349106700,0.80909304,231.55,231.43,30.12028772]
[1738349106901,20.0,231.59,231.43,30.12028772]
[1738349107085,0.93458304,231.58,231.43,7.9717]
[1738349107292,0.93458304,231.58,231.42,0.64804651]
[1738349108312,20.93458304,231.58,231.42,0.64804651]
[1738349109084,0.93458304,231.58,231.41,21.50058672]
[1738349109290,0.12549,231.55,231.39,0.64806111]
[1738349109483,0.80909304,231.54,231.39,0.64806111]
[1738349109707,0.12549,231.53,231.38,21.50058672]
[1738349109914,0.80909304,231.52,231.38,21.50058672]
[1738349110118,0.12549,231.47,231.32,6.0114]
[1738349110415,0.12549,231.47,231.31,21.50058672]
[1738349110416,0.80909304,231.46,231.33,0.64833168]
[1738349110615,0.80909304,231.46,231.32,0.64831014]
[1738349111905,0.80909304,231.46,231.31,0.64832971]
[1738349112104,20.0,231.44,231.29,0.64833731]
[1738349112308,0.80909304,231.43,231.29,0.64833731]
[1738349112508,0.80909304,231.43,231.3,21.50058672]
[1738349112701,0.80909304,231.43,231.34,21.50058672]
[1738349112897,0.80909304,231.49,231.35,0.64827003]
[1738349113234,0.80909304,231.49,231.42,21.50058672]
[1738349113530,0.80909304,231.55,231.44,21.50058672]
[1738349113711,3.78549,231.54,231.44,21.50058672]
[1738349113912,0.80909304,231.53,231.42,21.50058672]
[1738349114221,0.12549,231.52,231.43,0.64801392]
[1738349114420,3.78549,231.54,231.43,0.64801392]
[1738349114421,0.80909304,231.51,231.43,0.64801392]
[1738349114617,20.93458304,231.53,231.39,0.64805942]
[1738349114825,20.93458304,231.53,231.35,21.50058672]
[1738349115022,20.93458304,231.53,231.28,1.063]
[1738349115023,0.12549,231.48,231.3,22.14877833]
[1738349115343,0.12549,231.42,231.28,0.71132778]
[1738349115500,0.80909304,231.41,231.28,0.71132778]
[1738349115696,0.12549,231.39,231.28,0.063]
[1738349115903,0.12549,231.37,231.28,0.063]
[1738349116114,0.12549,231.35,231.28,0.063]
[1738349116521,0.80909304,231.39,231.15,21.50058672]
[1738349116522,0.12549,231.33,231.15,21.50058672]
[1738349116703,0.12549,231.31,231.16,0.64870893]
[1738349116903,0.80909304,231.3,231.16,0.64870893]
[1738349117101,20.0,231.28,231.15,0.64874824]
[1738349117426,0.93458304,231.27,231.14,0.063]
[1738349117622,0.12549,231.25,231.14,0.063]
[1738349117806,0.80909304,231.24,231.14,0.063]
[1738349120144,0.12549,231.23,231.14,0.063]
[1738349120306,3.66,231.26,231.14,0.063]
[1738349120307,0.12549,231.21,231.14,0.063]
[1738349120501,0.80909304,231.2,231.14,0.063]
[1738349120810,20.0,231.24,231.14,0.063]
[1738349121017,0.12549,231.22,231.14,0.063]
[1738349121224,0.12549,231.2,231.14,0.063]
[1738349121436,0.12549,231.18,231.14,0.063]
[1738349122229,0.12549,231.18,231.14,0.0001]
[1738349122539,0.80909304,231.17,231.14,0.0001]
[1738349122725,0.12549,231.16,231.14,0.0001]
[1738349123034,0.80909304,231.15,231.14,0.0001]
[1738349123528,0.12549,231.14,231.13,0.0001]
[1738349124126,13.53733853,231.16,231.13,0.0001]
[1738349124311,0.12549,231.1,230.96,0.2598]
[1738349124516,0.12549,231.08,230.96,0.2598]
[1738349124732,0.12549,231.08,230.93,0.64920789]
[1738349124733,0.12549,231.06,230.93,0.40900789]
[1738349124912,0.12549,231.06,230.89,21.50058672]
[1738349124913,0.12549,231.04,230.88,21.50058672]
[1738349125120,0.12549,231.02,230.89,0.57443261]
[1738349125428,0.81192326,231.01,230.85,0.57455349]
[1738349125629,0.81192326,231.01,230.85,22.07514021]
[1738349125826,0.81192326,231.01,230.85,0.57455349]
[1738349126033,0.12549,231.0,230.85,0.57455349]
[1738349126244,0.12549,230.98,230.85,0.57455349]
[1738349126413,0.12549,230.96,230.85,0.57455349]
[1738349126619,3.66,230.95,230.85,0.57455349]
[1738349126925,0.12549,230.93,230.82,0.57474789]
[1738349127112,0.12549,230.91,230.82,0.57474789]
[1738349127729,0.12549,230.93,230.81,0.57512361]
[1738349127943,0.81225587,230.92,230.8,15.68826027]
[1738349128153,0.81225587,230.92,230.81,0.57519699]
[1738349128439,3.66,230.95,230.89,35.14745182]
[1738349128620,3.66,230.95,230.9,0.57443999]
[1738349128823,3.66,231.02,230.9,0.57443999]
[1738349129024,0.81190207,231.06,231.0,35.14745182]
[1738349129025,0.81177452,231.06,231.0,35.14745182]
[1738349129224,0.81162046,231.12,231.01,0.57394788]